bitfinex/quotes_SOLUSD_20241022
["timestamp","ask_amount","ask_price","bid_price","bid_amount"]
[1729615841234,20.0,166.48,166.39,20.0]
[1729615841438,6.0074,166.47,166.39,20.0]
[1729615842945,6.0067,166.48,166.39,20.0]
[1729615843331,20.0,166.5,166.41,20.0]
[1729615843637,20.0,166.53,166.41,20.0]
[1729615843638,31.2485,166.54,166.41,20.0]
[1729615843851,6.0061,166.5,166.41,20.0]
[1729615844541,6.0061,166.5,166.41,37.33482403]
[1729615844835,6.0058,166.51,166.41,37.33482403]
[1729615845029,20.0,166.51,166.41,37.33482403]
[1729615845421,6.0061,166.5,166.41,37.33482403]
[1729615846437,6.0067,166.48,166.38,22.9508]
[1729615846613,6.0074,166.47,166.39,20.0]
[1729615846817,6.0075,166.46,166.39,20.0]
[1729615847737,35.0159,166.49,166.38,22.9508]
[1729615847941,6.0078,166.45,166.38,22.9508]
[1729615848313,6.0079,166.45,166.38,22.9508]
[1729615848942,15.8693,166.47,166.38,22.9508]
[1729615849124,6.0074,166.46,166.38,22.9508]
[1729615849527,21.8764,166.47,166.38,22.9508]
[1729615853349,15.8693,166.47,166.38,22.9508]
[1729615855033,6.0081,166.45,166.38,6.4642]
[1729615855355,16.3108,166.36,166.28,0.6249206]
[1729615855653,6.0117,166.34,166.28,0.6249206]
[1729615855958,16.3108,166.36,166.28,0.6249206]
[1729615855959,26.0117,166.35,166.28,0.6249206]
[1729615856128,6.0117,166.34,166.28,0.6249206]
[1729615857536,6.0124,166.33,166.28,0.6249206]
[1729615858732,26.0114,166.35,166.28,0.6249206]
[1729615858953,20.0,166.35,166.28,0.6249206]
[1729615859437,6.0121,166.33,166.28,0.6249206]
[1729615860149,20.0,166.35,166.28,0.6249206]
[1729615860335,26.0114,166.35,166.28,0.6249206]
[1729615861233,6.0119,166.34,166.28,0.6249206]
[1729615861739,6.0125,166.32,166.28,0.6249206]
[1729615862259,6.0132,166.3,166.28,0.6249206]
[1729615866050,6.0128,166.32,166.28,0.6249206]
[1729615867544,6.0131,166.31,166.28,0.6249206]
[1729615867740,6.0135,166.29,166.28,0.6249206]
[1729615869060,6.0133,166.3,166.28,0.6249206]
[1729615869435,20.0,166.35,166.28,0.6249206]
[1729615869663,6.0124,166.33,166.28,0.6249206]
[1729615870046,6.0126,166.32,166.28,0.6249206]
[1729615870357,20.0,166.31,166.28,0.6249206]
[1729615870841,6.0134,166.3,166.28,0.6249206]
[1729615871967,6.0135,166.29,166.28,0.6249206]
[1729615872874,49.790384,166.29,166.28,0.6249206]
[1729615873159,66.153284,166.29,166.28,0.6249206]
[1729615874955,42.3764,166.29,166.28,0.6249206]
[1729615875352,26.0135,166.29,166.28,0.6249206]
[1729615876861,20.0,166.29,166.28,0.6249206]
[1729615877461,26.0135,166.29,166.28,0.6249206]
[1729615878354,20.0,166.29,166.28,0.6249206]
[1729615878557,26.0135,166.29,166.28,0.6249206]
[1729615879867,6.0133,166.3,166.28,0.6249206]
[1729615880684,20.0,166.32,166.28,0.6249206]
[1729615880973,6.0129,166.31,166.28,0.6249206]
[1729615881156,20.0,166.32,166.28,0.6249206]
[1729615881358,6.24444129,166.33,166.28,0.6249206]
[1729615881555,1.04256589,166.36,166.28,0.6249206]
[1729615881556,6.0111,166.36,166.28,0.6249206]
[1729615881859,15.0253,166.39,166.28,20.6249206]
[1729615881860,6.24456013,166.38,166.28,20.6249206]
[1729615882061,6.011,166.36,166.28,20.6249206]
[1729615882372,12.25496013,166.38,166.28,20.6249206]
[1729615882777,6.24456013,166.38,166.3,36.1301]
[1729615883082,6.0096,166.4,166.3,36.1301]
[1729615883247,6.0099,166.39,166.3,36.1301]
[1729615883448,6.44332613,166.43,166.3,16.1301]
[1729615883670,15.17480999,166.43,166.3,16.1301]
[1729615883862,6.0118,166.34,166.3,16.1301]
[1729615884064,15.0248,166.4,166.28,0.6249206]
[1729615884065,6.0124,166.33,166.28,0.6249206]
[1729615884274,6.0131,166.31,166.28,0.6249206]
[1729615884474,6.0127,166.32,166.28,0.6249206]
[1729615885352,43.776884,166.36,166.28,0.6249206]
[1729615885552,6.0114,166.35,166.28,0.6249206]
[1729615885753,20.0,166.33,166.28,0.6249206]
[1729615886057,6.0122,166.33,166.28,0.6249206]
[1729615886463,15.0285,166.35,166.28,0.6249206]
[1729615886760,43.776884,166.36,166.28,0.6249206]
[1729615886969,6.0131,166.31,166.28,0.6249206]
[1729615887264,6.0125,166.32,166.28,0.6249206]
[1729615887467,43.776884,166.36,166.28,0.6249206]
[1729615887676,6.0114,166.35,166.28,0.6249206]
[1729615888176,6.0119,166.34,166.28,0.6249206]
[1729615889688,23.776884,166.36,166.28,0.6249206]
[1729615889858,6.0129,166.31,166.28,0.6249206]
[1729615890054,20.0,166.35,166.28,0.6249206]
[1729615890261,6.0124,166.33,166.28,0.6249206]
[1729615892163,20.0,166.35,166.28,0.6249206]
[1729615892657,26.0117,166.35,166.28,0.6249206]
[1729615892865,6.0125,166.32,166.28,0.6249206]
[1729615893178,6.0124,166.33,166.28,0.6249206]
[1729615894478,15.0268,166.37,166.28,0.6249206]
[1729615894479,20.0,166.37,166.28,0.6249206]
[1729615894781,6.0115,166.35,166.28,0.6249206]
[1729615895190,6.23771202,166.38,166.29,21.2657]
[1729615895501,12.24801202,166.38,166.29,21.2657]
[1729615895670,6.23771202,166.38,166.29,21.2657]
[1729615895863,6.0113,166.36,166.29,21.2657]
[1729615900384,20.0,166.37,166.29,21.2657]
[1729615900885,6.23771202,166.38,166.3,20.0]
[1729615901191,6.23771202,166.38,166.31,23.776884]
[1729615901361,6.0093,166.41,166.31,23.776884]
[1729615901561,4.41961295,166.4,166.31,23.776884]
[1729615901787,6.0092,166.41,166.31,23.776884]
[1729615902563,6.0099,166.4,166.3,20.0]
[1729615902894,6.01,166.39,166.3,20.0]
[1729615903080,6.0106,166.38,166.3,20.0]
[1729615903593,20.0,166.41,166.3,20.0]
[1729615903594,6.01,166.39,166.3,20.0]
[1729615904699,20.0,166.41,166.32,20.0]
[1729615904875,20.0,166.41,166.33,23.776884]
[1729615905374,20.0,166.41,166.3,20.0]
[1729615905569,6.0097,166.4,166.3,20.0]
[1729615905889,20.0,166.41,166.32,20.0]
[1729615906310,26.0092,166.41,166.32,20.0]
[1729615907390,20.0,166.41,166.32,20.0]
[1729615908282,20.0,166.41,166.33,23.776884]
[1729615908483,6.2369484,166.43,166.35,23.776884]
[1729615908701,6.0078,166.45,166.36,20.0]
[1729615908878,6.009,166.42,166.34,43.776884]
[1729615909081,6.0086,166.43,166.34,43.776884]
[1729615909911,6.0082,166.44,166.34,43.776884]
[1729615910215,6.0082,166.44,166.35,6.5891]
[1729615911380,6.24483505,166.46,166.38,37.3552822]
[1729615911586,6.0066,166.49,166.39,23.776884]
[1729615912087,4.41379947,166.48,166.39,23.776884]
[1729615912303,6.0067,166.48,166.39,23.776884]
[1729615913105,20.0,166.48,166.39,23.776884]
[1729615913304,26.0068,166.48,166.39,23.776884]
[1729615913899,20.0,166.5,166.39,23.776884]
[1729615914195,34.53848789,166.49,166.35,6.5891]
[1729615914393,6.0091,166.42,166.35,6.5891]
[1729615915712,6.0085,166.44,166.35,6.5891]
[1729615916112,6.0085,166.44,166.36,20.0]
[1729615918507,20.0,166.48,166.36,20.0]
[1729615918711,6.0085,166.43,166.36,20.0]
[1729615919210,6.0082,166.44,166.36,20.0]
[1729615920204,20.0,166.46,166.36,20.0]
[1729615920419,6.0085,166.43,166.36,20.0]
[1729615920912,20.0,166.46,166.36,20.0]
[1729615921085,15.0164,166.49,166.38,20.0]
[1729615921290,6.0065,166.49,166.39,23.776884]
[1729615921485,15.3992,166.51,166.39,23.776884]
[1729615921805,15.3992,166.51,166.38,15.2264]
[1729615921806,6.0081,166.44,166.38,15.2264]
[1729615922122,6.25037424,166.47,166.36,20.0]
[1729615922410,6.0087,166.43,166.36,43.776884]
[1729615923902,6.0082,166.44,166.36,43.776884]
[1729615924627,6.0082,166.44,166.35,6.5891]
[1729615924628,15.0788,166.45,166.35,6.5891]
[1729615924795,20.0,166.42,166.3,21.5276]
[1729615925103,15.0235,166.41,166.3,21.5276]
[1729615925303,6.0104,166.38,166.3,21.5276]
[1729615926718,6.0104,166.38,166.31,20.0]
[1729615928415,6.0114,166.36,166.3,21.5276]
[1729615928613,6.0114,166.36,166.3,6.3576]
[1729615928924,6.0117,166.34,166.26,21.3084]
[1729615929415,6.0114,166.35,166.26,21.3084]
[1729615929623,6.0099,166.39,166.26,38.7636822]
[1729615930123,6.0099,166.39,166.27,20.0]
[1729615930322,6.0099,166.39,166.3,20.0]
[1729615931417,15.4757,166.41,166.3,20.0]
[1729615931418,6.0103,166.38,166.3,20.0]
[1729615935802,6.011,166.36,166.26,21.3084]
[1729615936001,6.0121,166.34,166.26,21.3084]
[1729615936198,20.0,166.37,166.26,21.3084]
[1729615936199,6.0123,166.33,166.26,21.3084]
[1729615940805,15.0277,166.36,166.26,21.3084]
[1729615941005,6.0125,166.32,166.26,21.3084]
[1729615942604,15.4757,166.41,166.27,20.0]
[1729615942810,6.2650887,166.37,166.27,20.0]
[1729615943134,6.012,166.34,166.26,21.3084]
[1729615943311,6.012,166.34,166.27,20.0]
[1729615943908,6.0131,166.31,166.26,21.3084]
[1729615944122,6.0123,166.33,166.26,21.3084]
[1729615944329,6.0127,166.32,166.26,6.2132]
[1729615945127,43.776884,166.35,166.26,6.2132]
[1729615945430,6.0122,166.33,166.26,6.2132]
[1729615946813,6.0118,166.34,166.26,6.2132]
[1729615948631,6.0118,166.34,166.27,11.11616484]
[1729615949028,27.84480049,166.39,166.31,11.11616484]
[1729615949029,6.26550049,166.39,166.31,11.11616484]
[1729615949207,6.0098,166.4,166.31,11.11616484]
[1729615949536,6.01,166.39,166.31,11.11616484]
[1729615955526,15.4757,166.41,166.31,11.11616484]
[1729615955724,15.024,166.4,166.31,11.11616484]
[1729615956041,6.0106,166.38,166.31,11.11616484]
[1729615956842,6.0107,166.37,166.31,11.11616484]
[1729615957821,6.0104,166.38,166.31,11.11616484]
[1729615958723,6.01,166.39,166.31,11.11616484]
[1729615960038,6.01,166.39,166.32,20.0]
[1729615963647,12.26976964,166.42,166.34,20.0]
[1729615964542,12.26976964,166.42,166.35,11.11616484]
[1729615964737,6.26076964,166.42,166.35,11.11616484]
[1729615965241,12.26966964,166.42,166.35,11.11616484]
[1729615965952,6.0098,166.4,166.34,20.0]
[1729615966121,6.01,166.39,166.34,20.0]
[1729615966650,6.0111,166.36,166.29,22.3767]
[1729615966833,15.0231,166.41,166.29,33.49286484]
[1729615966834,6.0108,166.37,166.29,33.49286484]
[1729615967522,6.0108,166.37,166.31,11.11616484]
[1729615967938,16.0383,166.4,166.3,20.0]
[1729615968139,6.0107,166.37,166.3,31.11616484]
[1729615968841,16.0383,166.4,166.3,31.11616484]
[1729615968842,16.0383,166.4,166.32,11.11616484]
[1729615969051,6.0097,166.4,166.32,11.11616484]
[1729615973147,20.0,166.4,166.33,23.776884]
[1729615973847,12.26964471,166.41,166.33,23.776884]
[1729615974454,6.26034471,166.41,166.33,23.776884]
[1729615975448,6.26034471,166.41,166.34,11.11616484]
[1729615976246,6.26034471,166.41,166.36,11.11616484]
[1729615976548,6.0083,166.44,166.36,11.11616484]
[1729615976847,6.0083,166.44,166.37,20.0]
[1729615977854,6.0088,166.43,166.37,20.0]
[1729615979365,6.0093,166.41,166.36,20.0]
[1729615979909,20.0,166.43,166.32,34.89304884]
[1729615980166,6.0098,166.4,166.32,34.89304884]
[1729615980324,6.0098,166.4,166.32,11.11616484]
[1729615980737,15.0204,166.44,166.32,11.11616484]
[1729615980943,6.0091,166.42,166.36,11.11616484]
[1729615981148,6.0091,166.42,166.34,11.11616484]
[1729615981457,15.0204,166.44,166.32,23.776884]
[1729615981458,6.0098,166.4,166.33,20.0]
[1729615985156,6.0101,166.39,166.33,20.0]
[1729615985451,6.0101,166.39,166.32,11.11616484]
[1729615986450,15.0213,166.43,166.31,6.5707]
[1729615986451,6.0111,166.36,166.31,6.5707]
[1729615987676,6.0123,166.33,166.28,6.8221206]
[1729615987840,6.0127,166.32,166.28,0.6249206]
[1729615988328,6.0128,166.31,166.28,0.6249206]
[1729615988528,23.776884,166.32,166.28,0.6249206]
[1729615988753,6.0134,166.3,166.28,0.6249206]
[1729615989056,6.0122,166.33,166.28,0.6249206]
[1729615989225,21.279,166.39,166.28,0.6249206]
[1729615989426,6.0113,166.36,166.28,0.6249206]
[1729615990036,60.019684,166.38,166.28,0.6249206]
[1729615990348,6.0115,166.35,166.28,0.6249206]
[1729615993347,60.019684,166.38,166.28,0.6249206]
[1729615993550,4.4247427,166.37,166.28,0.6249206]
[1729615993736,4.4247427,166.36,166.28,0.6249206]
[1729615993938,6.0123,166.33,166.28,0.6249206]
[1729615994137,6.0128,166.32,166.28,0.6249206]
[1729615996059,6.25608738,166.35,166.28,0.6249206]
[1729615996363,6.0129,166.31,166.28,0.6249206]
[1729615996743,6.0135,166.29,166.28,0.6249206]
[1729615996977,49.790384,166.29,166.28,0.6249206]
[1729616001443,29.790384,166.29,166.28,0.6249206]
[1729616001651,49.790384,166.29,166.28,0.6249206]
[1729616004255,26.0135,166.29,166.28,0.6249206]
[1729616004556,32.26988667,166.29,166.28,0.6249206]
[1729616005037,6.25638667,166.29,166.28,0.6249206]
[1729616005764,12.26988667,166.29,166.28,0.6249206]
[1729616008573,30.31988667,166.29,166.28,0.6249206]
[1729616008870,6.016,166.23,166.14,11.11616484]
[1729616009171,15.0363,166.27,166.13,6.6398]
[1729616009172,6.0152,166.25,166.13,6.6398]
[1729616009464,6.0152,166.25,166.16,11.11616484]
[1729616010056,18.05,166.28,166.13,6.6398]
[1729616010274,6.0172,166.2,166.13,6.6398]
[1729616010482,6.0172,166.19,166.13,6.6398]
[1729616011767,6.017,166.2,166.13,6.6398]
[1729616011972,20.0,166.23,166.14,11.11616484]
[1729616012178,6.0156,166.24,166.14,11.11616484]
[1729616012852,6.0156,166.24,166.15,20.0]
[1729616013244,6.015,166.25,166.17,20.0]
[1729616014854,20.0,166.27,166.17,20.0]
[1729616015059,20.0,166.27,166.18,11.11616484]
[1729616015265,6.25638667,166.29,166.19,20.0]
[1729616015571,6.0143,166.27,166.19,20.0]
[1729616016475,6.2514763,166.28,166.2,32.64786484]
[1729616016652,6.0138,166.29,166.2,32.64786484]
[1729616018451,20.0,166.29,166.2,21.5317]
[1729616018650,38.812284,166.28,166.17,20.0]
[1729616018855,6.0157,166.24,166.17,20.0]
[1729616027182,20.0,166.29,166.17,20.0]
[1729616027361,12.27568092,166.26,166.17,31.11616484]
[1729616027687,6.0149,166.26,166.17,31.11616484]
[1729616029786,20.0,166.26,166.17,20.0]
[1729616029961,6.0155,166.24,166.17,20.0]
[1729616032065,6.0151,166.25,166.17,20.0]
[1729616032785,6.2614903,166.27,166.18,11.11616484]
[1729616032975,6.2614903,166.27,166.2,11.11616484]
[1729616033579,6.2614903,166.27,166.21,20.0]
[1729616034787,6.2614903,166.27,166.19,20.0]
[1729616034985,6.2614903,166.27,166.19,31.11616484]
[1729616040989,6.2614903,166.27,166.21,11.11616484]
[1729616047188,6.2614903,166.27,166.22,20.0]
[1729616047374,6.2614903,166.27,166.24,20.0]
[1729616047574,21.3027,166.33,166.24,20.0]
[1729616048278,12.27033118,166.34,166.24,20.0]
[1729616048482,12.27033118,166.34,166.23,33.51496484]
[1729616048483,6.25843118,166.34,166.27,11.11616484]
[1729616050088,6.25843118,166.34,166.24,20.0]
[1729616050290,6.0121,166.33,166.24,20.0]
[1729616050498,6.0127,166.32,166.24,20.0]
[1729616050877,6.0129,166.31,166.24,20.0]
[1729616052277,6.0121,166.33,166.25,11.11616484]
[1729616052478,6.0121,166.33,166.26,20.0]
[1729616056503,12.27033118,166.34,166.26,20.0]
[1729616056796,6.25843118,166.34,166.26,20.0]
[1729616056999,6.25843118,166.34,166.29,23.776884]
[1729616057304,6.0104,166.38,166.3,20.0]
[1729616057800,6.26076511,166.39,166.3,20.0]
[1729616058110,6.26076511,166.39,166.32,20.0]
[1729616058400,7.05193904,166.43,166.35,11.11616484]
[1729616058605,6.0085,166.43,166.35,11.11616484]
[1729616058786,12.26651485,166.43,166.35,11.11616484]
[1729616058977,6.0089,166.42,166.35,11.11616484]
[1729616059184,6.25801485,166.43,166.34,20.0]
[1729616059386,6.0088,166.42,166.34,20.0]
[1729616060189,6.0102,166.39,166.32,20.0]
[1729616060384,6.0101,166.39,166.32,20.0]
[1729616061279,20.0,166.42,166.32,20.0]
[1729616061487,6.0092,166.41,166.32,20.0]
[1729616063187,6.25801485,166.43,166.33,34.89304884]
[1729616063389,12.26671485,166.43,166.35,11.11616484]
[1729616064388,6.25801485,166.43,166.35,11.11616484]
[1729616064604,6.0088,166.42,166.35,11.11616484]
[1729616074913,6.257069,166.45,166.34,20.0]
[1729616075219,6.0087,166.43,166.34,31.11616484]
[1729616075711,6.0089,166.42,166.34,31.11616484]
[1729616076120,6.0089,166.42,166.35,21.628]
[1729616078498,12.265069,166.45,166.36,31.11616484]
[1729616086028,6.257069,166.45,166.38,31.11616484]
[1729616086225,1.04304285,166.49,166.4,11.11616484]
[1729616086526,6.0068,166.48,166.4,31.11616484]
[1729616086729,6.0067,166.48,166.4,31.11616484]
[1729616087323,4.5067,166.48,166.4,31.11616484]
[1729616089316,22.35825405,166.5,166.4,31.11616484]
[1729616089515,6.25455405,166.5,166.44,11.11616484]
[1729616089724,6.0052,166.52,166.45,20.0]
[1729616091009,6.0052,166.52,166.44,11.11616484]
[1729616091228,6.0052,166.52,166.45,20.0]
[1729616092833,6.0064,166.49,166.43,20.0]
[1729616093212,20.0,166.51,166.4,11.11616484]
[1729616093836,6.0066,166.49,166.4,11.11616484]
[1729616094614,6.0066,166.49,166.41,20.0]
[1729616095016,6.0077,166.46,166.38,6.5327]
[1729616095216,6.008,166.45,166.38,6.5327]
[1729616097720,6.008,166.45,166.39,20.0]
[1729616099320,20.0,166.48,166.4,23.776884]
[1729616099537,16.1963,166.49,166.39,20.0]
[1729616099717,20.0,166.48,166.39,20.0]
[1729616100043,6.0083,166.44,166.39,20.0]
[1729616100446,6.0071,166.47,166.39,20.0]
[1729616101523,6.0068,166.48,166.39,20.0]
[1729616102022,6.0068,166.48,166.39,31.11616484]
[1729616102539,6.0068,166.48,166.39,20.0]
[1729616103216,16.1963,166.49,166.4,23.776884]
[1729616103417,6.0071,166.47,166.39,20.0]
[1729616103753,6.0075,166.46,166.39,20.0]
[1729616105520,16.1963,166.49,166.39,20.0]
[1729616105721,20.0,166.48,166.39,20.0]
[1729616105916,6.008,166.45,166.39,20.0]
[1729616106131,6.008,166.45,166.38,6.5327]
[1729616106132,20.0,166.48,166.38,6.5327]
[1729616106345,6.0098,166.4,166.34,6.1904]
[1729616106841,6.0102,166.39,166.31,16.2496]
[1729616107042,6.0105,166.38,166.31,16.2496]
[1729616107623,6.0098,166.4,166.32,20.0]
[1729616107928,6.0093,166.41,166.32,20.0]
[1729616108249,6.0093,166.41,166.32,31.11616484]
[1729616110733,36.9527656,166.46,166.34,11.11616484]
[1729616110933,36.9527656,166.46,166.37,26.0382]
[1729616110934,16.9527656,166.46,166.37,26.0382]
[1729616111129,6.0073,166.47,166.37,26.0382]
[1729616111744,6.0073,166.47,166.39,20.0]
[1729616112525,6.0074,166.46,166.39,20.0]
[1729616116772,6.0078,166.45,166.39,20.0]
[1729616116968,6.0078,166.45,166.38,16.6618]
[1729616116969,6.0081,166.45,166.38,16.6618]
[1729616117145,6.0082,166.44,166.38,20.0]
[1729616117655,15.0186,166.46,166.34,16.5968]
[1729616117860,6.0093,166.41,166.34,16.5968]
[1729616118055,16.3094,166.44,166.33,6.2778]
[1729616118375,58.798184,166.43,166.33,6.2778]
[1729616118753,6.0099,166.4,166.33,6.2778]
[1729616120165,6.0102,166.39,166.33,6.2778]
[1729616120350,43.776884,166.43,166.33,6.2778]
[1729616120671,6.0105,166.38,166.33,6.2778]
[1729616120887,6.01,166.39,166.31,20.0]
[1729616124977,20.0,166.41,166.31,20.0]
[1729616125176,6.0102,166.39,166.31,20.0]
[1729616126309,6.0107,166.37,166.31,20.0]
[1729616128870,6.0096,166.4,166.31,20.0]
[1729616129889,20.0,166.41,166.31,20.0]
[1729616130064,6.0099,166.39,166.31,20.0]
[1729616130982,20.0,166.41,166.31,20.0]
[1729616131167,6.0105,166.38,166.31,20.0]
[1729616132871,6.23658589,166.42,166.31,20.0]
[1729616132872,6.23658589,166.42,166.36,20.0]
[1729616133174,6.0077,166.46,166.37,11.11616484]
[1729616133376,6.0078,166.45,166.37,11.11616484]
[1729616133772,6.0078,166.45,166.36,26.4548]
[1729616134086,22.48872223,166.48,166.36,26.4548]
[1729616134296,6.0086,166.43,166.36,6.4548]
[1729616135486,6.0082,166.44,166.36,6.4548]
[1729616137869,15.0181,166.47,166.34,20.0]
[1729616138070,43.776884,166.46,166.34,20.0]
[1729616139093,6.0088,166.43,166.34,20.0]
[1729616139292,6.0095,166.41,166.34,20.0]
[1729616139584,6.0095,166.41,166.32,6.0095]
[1729616139585,6.0096,166.41,166.32,6.0095]
[1729616139984,43.776884,166.44,166.32,6.0095]
[1729616139985,6.0096,166.4,166.32,6.0095]
[1729616140689,6.0096,166.4,166.33,20.0]
[1729616142474,6.0094,166.41,166.33,20.0]
[1729616142870,43.776884,166.44,166.33,20.0]
[1729616143077,6.0096,166.4,166.33,20.0]
[1729616144387,6.0098,166.4,166.33,20.0]
[1729616146402,6.0098,166.4,166.32,6.0095]
[1729616148209,6.0099,166.4,166.32,6.0095]
[1729616154219,6.0096,166.4,166.32,6.0095]
[1729616155315,21.284,166.41,166.32,6.0095]
[1729616155691,6.0099,166.39,166.32,6.0095]
[1729616156015,20.0,166.4,166.31,20.0]
[1729616156225,6.0108,166.37,166.31,20.0]
[1729616157621,6.0115,166.35,166.28,6.3465]
[1729616159609,43.776884,166.37,166.25,26.41236484]
[1729616159807,6.0123,166.33,166.25,15.2962]
[1729616160313,6.0117,166.35,166.25,15.2962]
[1729616161295,6.0117,166.35,166.26,20.0]
[1729616161819,21.4321,166.34,166.26,20.0]
[1729616162200,6.0121,166.33,166.26,20.0]
[1729616163421,6.0128,166.31,166.25,15.2962]
[1729616163599,6.0128,166.31,166.24,6.5551]
[1729616163923,6.0136,166.29,166.21,15.4838]
[1729616164217,6.0133,166.3,166.21,15.4838]
[1729616164595,6.0129,166.31,166.21,15.4838]
[1729616165314,15.4201,166.34,166.22,11.11616484]
[1729616165626,6.0124,166.33,166.23,20.0]
[1729616166010,6.0124,166.33,166.22,11.11616484]
[1729616166011,43.776884,166.33,166.21,15.4838]
[1729616166212,6.0127,166.32,166.21,15.4838]
[1729616166528,21.4319,166.34,166.22,34.89304884]
[1729616166720,21.4319,166.34,166.24,11.11616484]
[1729616166898,6.0127,166.32,166.21,15.4838]
[1729616167224,6.0127,166.32,166.23,20.0]
[1729616169118,15.4201,166.34,166.23,20.0]
[1729616169325,6.0122,166.33,166.23,20.0]
[1729616169527,15.4201,166.34,166.25,20.0]
[1729616170617,21.4321,166.34,166.25,20.0]
[1729616171408,6.0124,166.33,166.25,20.0]
[1729616173629,6.013,166.31,166.22,11.11616484]
[1729616173807,6.0136,166.29,166.21,15.4838]
[1729616174007,6.0133,166.3,166.21,15.4838]
[1729616174207,6.0132,166.3,166.21,15.4838]
[1729616174819,6.0132,166.3,166.22,20.0]
[1729616175023,6.0132,166.3,166.19,6.2064]
[1729616175024,43.776884,166.31,166.2,20.0]
[1729616175226,15.0312,166.32,166.2,20.0]
[1729616175435,6.0134,166.3,166.22,20.0]
[1729616175908,6.0136,166.29,166.22,20.0]
[1729616176620,6.0136,166.29,166.2,20.0]
[1729616178037,6.0142,166.28,166.2,20.0]
[1729616178226,20.0,166.29,166.19,17.32256484]
[1729616178413,6.0142,166.28,166.19,17.32256484]
[1729616179333,6.0137,166.29,166.2,20.0]
[1729616180132,6.0137,166.29,166.21,11.11616484]
[1729616181221,6.0129,166.31,166.23,11.11616484]
[1729616181927,6.0132,166.3,166.23,11.11616484]
[1729616183234,6.21669609,166.33,166.25,11.11616484]
[1729616183420,6.0123,166.33,166.25,11.11616484]
[1729616187131,6.0123,166.33,166.25,20.0]
[1729616187343,6.0127,166.32,166.25,20.0]
[1729616187521,15.4201,166.34,166.26,11.11616484]
[1729616187726,15.4201,166.34,166.28,11.11616484]
[1729616188648,6.21477096,166.36,166.28,11.11616484]
[1729616188815,30.3757,166.39,166.28,11.11616484]
[1729616189015,6.0112,166.36,166.28,11.11616484]
[1729616189528,6.0117,166.35,166.28,11.11616484]
[1729616189913,68.04370579,166.38,166.26,11.11616484]
[1729616190142,6.0125,166.32,166.26,20.0]
[1729616190451,6.0131,166.31,166.25,6.418]
[1729616190747,18.15,166.35,166.24,15.5316]
[1729616191050,6.0132,166.3,166.22,31.11616484]
[1729616191221,6.0132,166.3,166.22,11.11616484]
[1729616192242,6.0127,166.32,166.24,11.11616484]
[1729616192544,6.0132,166.31,166.24,11.11616484]
[1729616193952,22.305,166.33,166.24,11.11616484]
[1729616194833,20.0,166.36,166.26,11.11616484]
[1729616195040,6.0118,166.34,166.26,11.11616484]
[1729616196629,6.0124,166.33,166.24,11.11616484]
[1729616196848,6.0124,166.33,166.25,20.0]
[1729616197146,6.0126,166.32,166.25,20.0]
[1729616199435,21.6261,166.33,166.25,20.0]
[1729616199626,6.0125,166.32,166.25,20.0]
[1729616200525,15.6137,166.33,166.25,20.0]
[1729616200745,6.0119,166.34,166.26,11.11616484]
[1729616201057,6.0115,166.35,166.26,11.11616484]
[1729616201232,32.27956058,166.36,166.26,26.42336484]
[1729616202348,6.0115,166.35,166.26,26.42336484]
[1729616206960,6.0117,166.34,166.26,26.42336484]
[1729616208347,6.0125,166.32,166.26,26.42336484]
[1729616208538,20.0,166.34,166.25,20.0]
[1729616209266,6.0121,166.33,166.25,20.0]
[1729616209468,26.0118,166.34,166.26,11.11616484]